[Event "Titled Tuesday Blitz May 23 Late 2023"]
[White "Djordjevic, Dejan N"]
[Black "Estrada Nieto, Julian"]
[WhiteFideId "913316"]
[BlackFideId "5101018"]
[WhiteElo "2261"]
[BlackElo "2161"]
[Result "1-0"]
[Round "09"]
[TimeControl "180+2"]
[Date "2023.05.23"]
[WhiteClock "0:02:34"]
[BlackClock "0:00:00"]

1. e4 {[%clk 0:03:00]}  e5 {[%clk 0:03:00]} 2. Nf3 {[%clk 0:03:00]}  Nc6 {[%clk 0:03:00]} 3. Bc4 {[%clk 0:02:59]}  Bc5 {[%clk 0:03:00]} 4. c3 {[%clk 0:02:59]}  Nf6 {[%clk 0:03:00]} 5. d3 {[%clk 0:02:59]}  d6 {[%clk 0:02:59]} 6. O-O {[%clk 0:02:59]}  a6 {[%clk 0:03:00]} 7. Bb3 {[%clk 0:02:59]}  Ba7 {[%clk 0:03:00]} 8. Re1 {[%clk 0:02:59]}  O-O {[%clk 0:03:01]} 9. Nbd2 {[%clk 0:02:59]}  Ng4 {[%clk 0:03:01]} 10. Re2 {[%clk 0:02:59]}  Kh8 {[%clk 0:03:01]} 11. h3 {[%clk 0:02:58]}  Nh6 {[%clk 0:03:01]} 12. Nf1 {[%clk 0:02:50]}  f5 {[%clk 0:03:01]} 13. Bxh6 {[%clk 0:02:49]}  gxh6 {[%clk 0:03:02]} 14. exf5 {[%clk 0:02:38]}  Bxf5 {[%clk 0:00:00]} 15. N1h2 {[%clk 0:02:34]} 1-0


[Site "https://www.chess.com"]

[Event "Titled Tuesday Blitz May 23 Late 2023"]
[White "Hajiyev, Kanan"]
[Black "ritanovikova"]
[WhiteFideId "13404148"]
[WhiteElo "2103"]
[BlackElo "2171"]
[Result "1-0"]
[Round "09"]
[TimeControl "180+2"]
[Date "2023.05.23"]
[WhiteClock "0:00:28"]
[BlackClock "0:00:00"]

1. d4 {[%clk 0:03:00]}  e5 {[%clk 0:02:21]} 2. Nf3 {[%clk 0:03:01]}  exd4 {[%clk 0:02:19]} 3. c4 {[%clk 0:03:02]}  c5 {[%clk 0:02:16]} 4. Nxd4 {[%clk 0:03:03]}  cxd4 {[%clk 0:02:15]} 5. g3 {[%clk 0:02:56]}  Nc6 {[%clk 0:02:14]} 6. Bg2 {[%clk 0:02:57]}  Bb4+ {[%clk 0:02:13]} 7. Nd2 {[%clk 0:02:56]}  Nf6 {[%clk 0:02:10]} 8. O-O {[%clk 0:02:54]}  O-O {[%clk 0:02:09]} 9. Nb3 {[%clk 0:02:54]}  d5 {[%clk 0:02:00]} 10. c5 {[%clk 0:02:40]}  Be6 {[%clk 0:01:41]} 11. Bg5 {[%clk 0:02:38]}  h6 {[%clk 0:01:39]} 12. Bf4 {[%clk 0:02:38]}  Ba5 {[%clk 0:01:37]} 13. Bd6 {[%clk 0:02:38]}  Re8 {[%clk 0:01:36]} 14. Nxa5 {[%clk 0:02:26]}  Qxa5 {[%clk 0:01:32]} 15. a3 {[%clk 0:02:26]}  Qb5 {[%clk 0:01:23]} 16. b4 {[%clk 0:02:25]}  a5 {[%clk 0:01:16]} 17. bxa5 {[%clk 0:02:24]}  Qxa5 {[%clk 0:01:12]} 18. h3 {[%clk 0:02:22]}  Ne4 {[%clk 0:01:07]} 19. Bf4 {[%clk 0:02:12]}  Nc3 {[%clk 0:01:03]} 20. Qd3 {[%clk 0:02:08]}  Qa6 {[%clk 0:00:58]} 21. Rfe1 {[%clk 0:01:40]}  Qxd3 {[%clk 0:00:55]} 22. exd3 {[%clk 0:01:41]}  Bf5 {[%clk 0:00:54]} 23. Bf1 {[%clk 0:01:36]}  Re6 {[%clk 0:00:44]} 24. g4 {[%clk 0:01:36]}  Bg6 {[%clk 0:00:43]} 25. Rxe6 {[%clk 0:01:27]}  fxe6 {[%clk 0:00:44]} 26. Re1 {[%clk 0:01:27]}  Bf7 {[%clk 0:00:38]} 27. Bc1 {[%clk 0:01:24]}  Ra5 {[%clk 0:00:37]} 28. f4 {[%clk 0:01:18]}  Rxc5 {[%clk 0:00:37]} 29. Bg2 {[%clk 0:01:17]}  Rb5 {[%clk 0:00:31]} 30. Kf2 {[%clk 0:01:16]}  Rb1 {[%clk 0:00:31]} 31. f5 {[%clk 0:01:12]}  exf5 {[%clk 0:00:28]} 32. gxf5 {[%clk 0:01:13]}  Na5 {[%clk 0:00:27]} 33. h4 {[%clk 0:01:11]}  Nb3 {[%clk 0:00:27]} 34. Bd2 {[%clk 0:01:07]}  Nxd2 {[%clk 0:00:25]} 35. Re7 {[%clk 0:01:07]}  Rb2 {[%clk 0:00:25]} 36. Kg3 {[%clk 0:01:06]}  Nb3 {[%clk 0:00:24]} 37. Rxb7 {[%clk 0:01:06]}  Nd1 {[%clk 0:00:22]} 38. Bf3 {[%clk 0:01:05]}  Nd2 {[%clk 0:00:21]} 39. Ra7 {[%clk 0:00:46]}  Nxf3 {[%clk 0:00:21]} 40. Kxf3 {[%clk 0:00:47]}  Rb3 {[%clk 0:00:20]} 41. Ke2 {[%clk 0:00:42]}  Nc3+ {[%clk 0:00:21]} 42. Kd2 {[%clk 0:00:42]}  Rb2+ {[%clk 0:00:20]} 43. Kc1 {[%clk 0:00:43]}  Ra2 {[%clk 0:00:18]} 44. Ra8+ {[%clk 0:00:39]}  Kh7 {[%clk 0:00:18]} 45. Rf8 {[%clk 0:00:39]}  Bh5 {[%clk 0:00:15]} 46. f6 {[%clk 0:00:35]}  gxf6 {[%clk 0:00:15]} 47. Rxf6 {[%clk 0:00:36]}  Kg7 {[%clk 0:00:15]} 48. Ra6 {[%clk 0:00:35]}  Nb5 {[%clk 0:00:14]} 49. Ra5 {[%clk 0:00:33]}  Nc3 {[%clk 0:00:14]} 50. a4 {[%clk 0:00:32]}  Bg6 {[%clk 0:00:14]} 51. Ra7+ {[%clk 0:00:31]}  Bf7 {[%clk 0:00:14]} 52. a5 {[%clk 0:00:31]}  Nb5 {[%clk 0:00:13]} 53. Ra8 {[%clk 0:00:30]}  Nc7 {[%clk 0:00:12]} 54. Ra7 {[%clk 0:00:28]}  Nb5 {[%clk 0:00:11]} 55. Ra8 {[%clk 0:00:28]}  Nc3 {[%clk 0:00:11]} 56. h5 {[%clk 0:00:28]}  Ra1+ {[%clk 0:00:09]} 57. Kb2 {[%clk 0:00:28]}  Rb1+ {[%clk 0:00:10]} 58. Ka3 {[%clk 0:00:28]}  Ra1+ {[%clk 0:00:09]} 59. Kb4 {[%clk 0:00:28]}  Rb1+ {[%clk 0:00:08]} 60. Kc5 {[%clk 0:00:28]}  Rd1 {[%clk 0:00:07]} 61. Kxd4 {[%clk 0:00:28]}  Ne2+ {[%clk 0:00:06]} 62. Ke3 {[%clk 0:00:28]}  Nc3 {[%clk 0:00:05]} 63. a6 {[%clk 0:00:28]}  Ra1 {[%clk 0:00:04]} 64. Kd4 {[%clk 0:00:29]}  Nb5+ {[%clk 0:00:04]} 65. Kc5 {[%clk 0:00:29]}  Nc3 {[%clk 0:00:03]} 66. d4 {[%clk 0:00:28]}  Ne4+ {[%clk 0:00:02]} 67. Kb6 {[%clk 0:00:28]}  Bxh5 {[%clk 0:00:00]} 68. a7 {[%clk 0:00:28]} 1-0


[Site "https://www.chess.com"]

[Event "Titled Tuesday Blitz May 23 Late 2023"]
[White "Cagara, Paulina"]
[Black "Schuster, Karsten"]
[WhiteFideId "1124870"]
[BlackFideId "4611071"]
[WhiteElo "1967"]
[BlackElo "2254"]
[Result "0-1"]
[Round "09"]
[TimeControl "180+2"]
[Date "2023.05.23"]
[WhiteClock "0:00:00"]
[BlackClock "0:00:28"]

1. e4 {[%clk 0:03:00]}  d5 {[%clk 0:02:55]} 2. exd5 {[%clk 0:03:00]}  Qxd5 {[%clk 0:02:54]} 3. Nc3 {[%clk 0:02:59]}  Qd6 {[%clk 0:02:54]} 4. Nf3 {[%clk 0:02:59]}  Bg4 {[%clk 0:02:53]} 5. h3 {[%clk 0:02:55]}  Bxf3 {[%clk 0:02:53]} 6. Qxf3 {[%clk 0:02:55]}  c6 {[%clk 0:02:53]} 7. Bc4 {[%clk 0:02:53]}  Nf6 {[%clk 0:02:53]} 8. O-O {[%clk 0:02:51]}  Nbd7 {[%clk 0:02:52]} 9. d3 {[%clk 0:02:47]}  Ne5 {[%clk 0:02:52]} 10. Qf4 {[%clk 0:02:42]}  Nxc4 {[%clk 0:02:52]} 11. Qxc4 {[%clk 0:02:42]}  e6 {[%clk 0:02:52]} 12. Bf4 {[%clk 0:02:38]}  Qd7 {[%clk 0:02:51]} 13. Ne4 {[%clk 0:02:33]}  Be7 {[%clk 0:02:48]} 14. Be5 {[%clk 0:02:26]}  Qd5 {[%clk 0:02:43]} 15. Qc3 {[%clk 0:02:17]}  Nxe4 {[%clk 0:02:32]} 16. dxe4 {[%clk 0:02:17]}  Qxe4 {[%clk 0:02:32]} 17. Rfe1 {[%clk 0:02:14]}  Qg6 {[%clk 0:02:31]} 18. Re3 {[%clk 0:02:08]}  f6 {[%clk 0:02:26]} 19. Rg3 {[%clk 0:02:07]}  Qf7 {[%clk 0:02:25]} 20. Bd4 {[%clk 0:02:03]}  e5 {[%clk 0:02:24]} 21. Bc5 {[%clk 0:02:02]}  O-O {[%clk 0:02:21]} 22. Re1 {[%clk 0:01:50]}  Bxc5 {[%clk 0:02:19]} 23. Qxc5 {[%clk 0:01:48]}  Rfd8 {[%clk 0:02:18]} 24. Ree3 {[%clk 0:01:43]}  Rd5 {[%clk 0:02:16]} 25. Qb4 {[%clk 0:01:42]}  Rad8 {[%clk 0:02:16]} 26. Kh2 {[%clk 0:01:34]}  b6 {[%clk 0:02:14]} 27. Qa4 {[%clk 0:01:33]}  c5 {[%clk 0:02:13]} 28. Re4 {[%clk 0:01:29]}  Rd4 {[%clk 0:02:13]} 29. Rxd4 {[%clk 0:01:28]}  exd4 {[%clk 0:02:07]} 30. Qc6 {[%clk 0:01:21]}  Qd7 {[%clk 0:02:06]} 31. Qe4 {[%clk 0:01:18]}  Re8 {[%clk 0:02:02]} 32. Qf4 {[%clk 0:01:16]}  Qe7 {[%clk 0:01:56]} 33. Qg4 {[%clk 0:01:14]}  g6 {[%clk 0:01:53]} 34. a4 {[%clk 0:01:08]}  Kg7 {[%clk 0:01:49]} 35. h4 {[%clk 0:01:08]}  Qe5 {[%clk 0:01:49]} 36. b3 {[%clk 0:01:03]}  Re7 {[%clk 0:01:46]} 37. f4 {[%clk 0:00:59]}  Qe2 {[%clk 0:01:41]} 38. Qc8 {[%clk 0:00:55]}  f5 {[%clk 0:01:39]} 39. Qxf5 {[%clk 0:00:48]}  Rf7 {[%clk 0:01:38]} 40. Qg5 {[%clk 0:00:44]}  Qf2 {[%clk 0:01:34]} 41. Qe5+ {[%clk 0:00:42]}  Kg8 {[%clk 0:01:30]} 42. Qe8+ {[%clk 0:00:38]}  Rf8 {[%clk 0:01:30]} 43. Qe6+ {[%clk 0:00:37]}  Kg7 {[%clk 0:01:29]} 44. h5 {[%clk 0:00:32]}  Qxf4 {[%clk 0:01:21]} 45. hxg6 {[%clk 0:00:30]}  Qh6+ {[%clk 0:01:11]} 46. Kg1 {[%clk 0:00:28]}  hxg6 {[%clk 0:01:06]} 47. Qe7+ {[%clk 0:00:22]}  Rf7 {[%clk 0:01:04]} 48. Qe5+ {[%clk 0:00:22]}  Kh7 {[%clk 0:01:04]} 49. Rh3 {[%clk 0:00:21]}  Qxh3 {[%clk 0:00:58]} 50. gxh3 {[%clk 0:00:21]}  Kg8 {[%clk 0:00:57]} 51. Kg2 {[%clk 0:00:22]}  Kf8 {[%clk 0:00:54]} 52. Kg3 {[%clk 0:00:22]}  Kg8 {[%clk 0:00:53]} 53. Qe6 {[%clk 0:00:22]}  Kg7 {[%clk 0:00:53]} 54. Kg4 {[%clk 0:00:22]}  Rf1 {[%clk 0:00:46]} 55. Qe7+ {[%clk 0:00:20]}  Rf7 {[%clk 0:00:45]} 56. Qe5+ {[%clk 0:00:20]}  Kh7 {[%clk 0:00:44]} 57. h4 {[%clk 0:00:19]}  Rf2 {[%clk 0:00:42]} 58. Qe7+ {[%clk 0:00:17]}  Kh6 {[%clk 0:00:42]} 59. Qg5+ {[%clk 0:00:16]}  Kh7 {[%clk 0:00:41]} 60. Kg3 {[%clk 0:00:16]}  Rxc2 {[%clk 0:00:40]} 61. h5 {[%clk 0:00:16]}  Rc3+ {[%clk 0:00:37]} 62. Kf4 {[%clk 0:00:16]}  gxh5 {[%clk 0:00:37]} 63. Qxh5+ {[%clk 0:00:15]}  Kg7 {[%clk 0:00:37]} 64. Qe5+ {[%clk 0:00:15]}  Kf7 {[%clk 0:00:37]} 65. Qc7+ {[%clk 0:00:15]}  Ke6 {[%clk 0:00:37]} 66. Qc6+ {[%clk 0:00:14]}  Ke7 {[%clk 0:00:35]} 67. Ke5 {[%clk 0:00:14]}  Re3+ {[%clk 0:00:35]} 68. Kd5 {[%clk 0:00:14]}  Rxb3 {[%clk 0:00:32]} 69. Qc7+ {[%clk 0:00:13]}  Kf6 {[%clk 0:00:32]} 70. Qxa7 {[%clk 0:00:11]}  Rb4 {[%clk 0:00:31]} 71. Kc6 {[%clk 0:00:10]}  d3 {[%clk 0:00:30]} 72. Qd7 {[%clk 0:00:08]}  Rd4 {[%clk 0:00:29]} 73. Qe8 {[%clk 0:00:04]}  d2 {[%clk 0:00:29]} 74. Qf8+ {[%clk 0:00:03]}  Kg5 {[%clk 0:00:29]} 75. Qg7+ {[%clk 0:00:03]}  Kf4 {[%clk 0:00:29]} 76. Qh6+ {[%clk 0:00:02]}  Kf3 {[%clk 0:00:29]} 77. Qh3+ {[%clk 0:00:02]}  Ke2 {[%clk 0:00:29]} 78. Qg2+ {[%clk 0:00:02]}  Kd1 {[%clk 0:00:29]} 79. Qf3+ {[%clk 0:00:02]}  Kc2 {[%clk 0:00:29]} 80. Qf5+ {[%clk 0:00:00]}  Rd3 {[%clk 0:00:28]} 0-1


[Site "https://www.chess.com"]

[Event "Titled Tuesday Blitz May 23 Late 2023"]
[White "Harish, Neeraj"]
[Black "Howell, David W L"]
[WhiteFideId "30958130"]
[BlackFideId "410608"]
[WhiteElo "1879"]
[BlackElo "2567"]
[Result "0-1"]
[Round "09"]
[TimeControl "180+2"]
[Date "2023.05.23"]
[WhiteClock "0:00:01"]
[BlackClock "0:00:06"]

1. e4 {[%clk 0:02:59]}  c5 {[%clk 0:02:59]} 2. Nf3 {[%clk 0:02:58]}  d6 {[%clk 0:02:58]} 3. d4 {[%clk 0:02:58]}  cxd4 {[%clk 0:02:59]} 4. Nxd4 {[%clk 0:02:59]}  Nf6 {[%clk 0:03:00]} 5. Nc3 {[%clk 0:02:59]}  a6 {[%clk 0:03:00]} 6. Be3 {[%clk 0:02:58]}  Ng4 {[%clk 0:02:59]} 7. Bg5 {[%clk 0:02:58]}  h6 {[%clk 0:02:59]} 8. Bh4 {[%clk 0:02:58]}  g5 {[%clk 0:02:59]} 9. Bg3 {[%clk 0:02:58]}  Bg7 {[%clk 0:02:59]} 10. h3 {[%clk 0:02:54]}  Ne5 {[%clk 0:02:56]} 11. Qd2 {[%clk 0:02:55]}  Nbc6 {[%clk 0:02:56]} 12. O-O-O {[%clk 0:02:52]}  Nxd4 {[%clk 0:02:52]} 13. Qxd4 {[%clk 0:02:51]}  Be6 {[%clk 0:02:51]} 14. Kb1 {[%clk 0:02:44]}  Rc8 {[%clk 0:02:50]} 15. Nd5 {[%clk 0:02:17]}  O-O {[%clk 0:02:43]} 16. Qd2 {[%clk 0:02:06]}  Bxd5 {[%clk 0:02:29]} 17. exd5 {[%clk 0:02:04]}  Qb6 {[%clk 0:02:26]} 18. c3 {[%clk 0:01:39]}  Ng6 {[%clk 0:01:59]} 19. Rc1 {[%clk 0:01:20]}  Rc5 {[%clk 0:01:57]} 20. f4 {[%clk 0:01:08]}  Nxf4 {[%clk 0:00:38]} 21. Bf2 {[%clk 0:00:49]}  Rfc8 {[%clk 0:00:38]} 22. Bxc5 {[%clk 0:00:45]}  Rxc5 {[%clk 0:00:37]} 23. c4 {[%clk 0:00:30]}  Ng6 {[%clk 0:00:31]} 24. Be2 {[%clk 0:00:19]}  a5 {[%clk 0:00:29]} 25. g3 {[%clk 0:00:18]}  a4 {[%clk 0:00:28]} 26. h4 {[%clk 0:00:17]}  a3 {[%clk 0:00:26]} 27. b3 {[%clk 0:00:17]}  Bf6 {[%clk 0:00:24]} 28. Bd3 {[%clk 0:00:11]}  Ne5 {[%clk 0:00:22]} 29. Qe2 {[%clk 0:00:10]}  Rc7 {[%clk 0:00:15]} 30. Qe4 {[%clk 0:00:08]}  Ng6 {[%clk 0:00:09]} 31. h5 {[%clk 0:00:07]}  Nf8 {[%clk 0:00:09]} 32. Rhf1 {[%clk 0:00:04]}  Qd4 {[%clk 0:00:09]} 33. Qxd4 {[%clk 0:00:04]}  Bxd4 {[%clk 0:00:09]} 34. Rf5 {[%clk 0:00:04]}  Be5 {[%clk 0:00:09]} 35. g4 {[%clk 0:00:04]}  Nd7 {[%clk 0:00:09]} 36. Rf3 {[%clk 0:00:04]}  Kg7 {[%clk 0:00:09]} 37. Rcf1 {[%clk 0:00:05]}  Nf6 {[%clk 0:00:08]} 38. Bf5 {[%clk 0:00:04]}  b6 {[%clk 0:00:07]} 39. Rc1 {[%clk 0:00:03]}  Ra7 {[%clk 0:00:07]} 40. Rc2 {[%clk 0:00:03]}  Ra8 {[%clk 0:00:08]} 41. Re2 {[%clk 0:00:03]}  Re8 {[%clk 0:00:07]} 42. Be4 {[%clk 0:00:03]}  Nxg4 {[%clk 0:00:07]} 43. Bf5 {[%clk 0:00:03]}  Nf6 {[%clk 0:00:07]} 44. Rc2 {[%clk 0:00:02]}  Rb8 {[%clk 0:00:08]} 45. b4 {[%clk 0:00:03]}  Nxh5 {[%clk 0:00:08]} 46. Rxa3 {[%clk 0:00:03]}  Nf6 {[%clk 0:00:08]} 47. Rh3 {[%clk 0:00:03]}  h5 {[%clk 0:00:08]} 48. Ra3 {[%clk 0:00:02]}  g4 {[%clk 0:00:08]} 49. Ra7 {[%clk 0:00:02]}  Re8 {[%clk 0:00:06]} 50. c5 {[%clk 0:00:01]}  bxc5 {[%clk 0:00:07]} 51. bxc5 {[%clk 0:00:02]}  Bd4 {[%clk 0:00:07]} 52. cxd6 {[%clk 0:00:02]}  Bxa7 {[%clk 0:00:07]} 53. Rc7 {[%clk 0:00:01]}  exd6 {[%clk 0:00:06]} 0-1


[Site "https://www.chess.com"]

[Event "Titled Tuesday Blitz May 23 Late 2023"]
[White "Brown, Raehanna"]
[Black "Luxama, Jacques Muller"]
[WhiteFideId "7402740"]
[BlackFideId "11900113"]
[WhiteElo "1655"]
[BlackElo "1931"]
[Result "1-0"]
[Round "09"]
[TimeControl "180+2"]
[Date "2023.05.23"]
[WhiteClock "0:02:17"]
[BlackClock "0:00:52"]

1. c4 {[%clk 0:02:56]}  Nf6 {[%clk 0:01:03]} 2. Nc3 {[%clk 0:02:54]}  e6 {[%clk 0:01:03]} 3. e4 {[%clk 0:02:53]}  d5 {[%clk 0:01:03]} 4. e5 {[%clk 0:02:54]}  d4 {[%clk 0:01:03]} 5. exf6 {[%clk 0:02:54]}  dxc3 {[%clk 0:01:03]} 6. bxc3 {[%clk 0:02:55]}  Qxf6 {[%clk 0:01:03]} 7. d4 {[%clk 0:02:55]}  Be7 {[%clk 0:01:02]} 8. Nf3 {[%clk 0:02:55]}  h6 {[%clk 0:01:02]} 9. Bd3 {[%clk 0:02:55]}  O-O {[%clk 0:01:03]} 10. O-O {[%clk 0:02:49]}  c5 {[%clk 0:01:02]} 11. Qe2 {[%clk 0:02:44]}  Rd8 {[%clk 0:01:01]} 12. Rb1 {[%clk 0:02:40]}  Nc6 {[%clk 0:00:56]} 13. Bb2 {[%clk 0:02:25]}  b6 {[%clk 0:00:55]} 14. Qe4 {[%clk 0:02:19]}  Bb7 {[%clk 0:00:53]} 15. Qh7+ {[%clk 0:02:17]}  Kf8 {[%clk 0:00:52]} 16. Qh8# {[%clk 0:02:17]} 1-0


[Site "https://www.chess.com"]

[Event "Titled Tuesday Blitz May 23 Late 2023"]
[White "Magallanes, Rey Jomar"]
[Black "Florianovitz, Derlei Alex"]
[WhiteFideId "5205948"]
[BlackFideId "2114178"]
[WhiteElo "2265"]
[BlackElo "1953"]
[Result "0-1"]
[Round "09"]
[TimeControl "180+2"]
[Date "2023.05.23"]
[WhiteClock "0:01:09"]
[BlackClock "0:00:14"]

1. e4 {[%clk 0:02:12]}  e6 {[%clk 0:02:58]} 2. d4 {[%clk 0:02:11]}  d5 {[%clk 0:02:58]} 3. e5 {[%clk 0:02:11]}  c5 {[%clk 0:02:58]} 4. c3 {[%clk 0:02:12]}  Nc6 {[%clk 0:02:58]} 5. Nf3 {[%clk 0:02:12]}  Qb6 {[%clk 0:02:58]} 6. a3 {[%clk 0:02:12]}  Bd7 {[%clk 0:02:58]} 7. b4 {[%clk 0:02:12]}  cxd4 {[%clk 0:02:58]} 8. cxd4 {[%clk 0:02:13]}  Rc8 {[%clk 0:02:48]} 9. Be3 {[%clk 0:02:13]}  h5 {[%clk 0:02:43]} 10. Bd3 {[%clk 0:02:12]}  Nh6 {[%clk 0:02:43]} 11. O-O {[%clk 0:02:11]}  Ng4 {[%clk 0:02:43]} 12. Nbd2 {[%clk 0:02:08]}  Be7 {[%clk 0:02:37]} 13. Qe2 {[%clk 0:02:08]}  a6 {[%clk 0:02:21]} 14. Nb3 {[%clk 0:02:07]}  Na7 {[%clk 0:02:05]} 15. Rac1 {[%clk 0:02:06]}  Bb5 {[%clk 0:01:59]} 16. Nc5 {[%clk 0:02:04]}  Bxd3 {[%clk 0:01:54]} 17. Qxd3 {[%clk 0:02:04]}  g6 {[%clk 0:01:42]} 18. h3 {[%clk 0:01:59]}  Nh6 {[%clk 0:01:39]} 19. Ng5 {[%clk 0:01:53]}  Nf5 {[%clk 0:01:36]} 20. Nf3 {[%clk 0:01:47]}  O-O {[%clk 0:01:33]} 21. Nd7 {[%clk 0:01:47]}  Qb5 {[%clk 0:01:22]} 22. Qxb5 {[%clk 0:01:45]}  Nxb5 {[%clk 0:01:18]} 23. Nxf8 {[%clk 0:01:45]}  Rxf8 {[%clk 0:01:18]} 24. Bg5 {[%clk 0:01:36]}  Bxg5 {[%clk 0:01:07]} 25. Nxg5 {[%clk 0:01:37]}  Nfxd4 {[%clk 0:01:06]} 26. Rfe1 {[%clk 0:01:35]}  Nc6 {[%clk 0:00:50]} 27. a4 {[%clk 0:01:33]}  Na3 {[%clk 0:00:46]} 28. Rc3 {[%clk 0:01:30]}  Nc4 {[%clk 0:00:44]} 29. b5 {[%clk 0:01:30]}  axb5 {[%clk 0:00:44]} 30. axb5 {[%clk 0:01:31]}  N6xe5 {[%clk 0:00:43]} 31. f4 {[%clk 0:01:30]}  Nd7 {[%clk 0:00:36]} 32. Rd1 {[%clk 0:01:26]}  Ndb6 {[%clk 0:00:28]} 33. Nf3 {[%clk 0:01:21]}  Ra8 {[%clk 0:00:26]} 34. Ne5 {[%clk 0:01:16]}  Ra5 {[%clk 0:00:18]} 35. Nxc4 {[%clk 0:01:14]}  Nxc4 {[%clk 0:00:18]} 36. Rb1 {[%clk 0:01:12]}  Kf8 {[%clk 0:00:18]} 37. Kf2 {[%clk 0:01:10]}  Ke7 {[%clk 0:00:19]} 38. Ke2 {[%clk 0:01:10]}  Kd6 {[%clk 0:00:19]} 39. Kd3 {[%clk 0:01:10]}  Kc5 {[%clk 0:00:18]} 40. b6 {[%clk 0:01:10]}  Ra2 {[%clk 0:00:16]} 41. Rc2 {[%clk 0:01:05]}  Rxc2 {[%clk 0:00:15]} 42. Kxc2 {[%clk 0:01:06]}  Na3+ {[%clk 0:00:16]} 43. Kb2 {[%clk 0:01:05]}  Nxb1 {[%clk 0:00:16]} 44. Kxb1 {[%clk 0:01:06]}  Kxb6 {[%clk 0:00:17]} 45. Kb2 {[%clk 0:01:06]}  Kc5 {[%clk 0:00:17]} 46. Kc3 {[%clk 0:01:07]}  b5 {[%clk 0:00:17]} 47. Kd3 {[%clk 0:01:08]}  b4 {[%clk 0:00:17]} 48. Kc2 {[%clk 0:01:09]}  Kc4 {[%clk 0:00:18]} 49. Kb2 {[%clk 0:01:09]}  d4 {[%clk 0:00:18]} 50. Kc2 {[%clk 0:01:10]}  b3+ {[%clk 0:00:19]} 51. Kc1 {[%clk 0:01:11]}  Kc3 {[%clk 0:00:19]} 52. Kb1 {[%clk 0:01:12]}  d3 {[%clk 0:00:19]} 53. Kc1 {[%clk 0:01:13]}  d2+ {[%clk 0:00:18]} 54. Kd1 {[%clk 0:01:13]}  b2 {[%clk 0:00:18]} 55. f5 {[%clk 0:01:14]}  b1=Q+ {[%clk 0:00:18]} 56. Ke2 {[%clk 0:01:15]}  Qe4+ {[%clk 0:00:17]} 57. Kf2 {[%clk 0:01:13]}  Qxf5+ {[%clk 0:00:17]} 58. Kg3 {[%clk 0:01:12]}  Qe5+ {[%clk 0:00:14]} 59. Kf2 {[%clk 0:01:10]}  d1=Q {[%clk 0:00:14]} 60. g3 {[%clk 0:01:09]}  Qde1+ {[%clk 0:00:14]} 61. Kg2 {[%clk 0:01:09]}  Q5e2# {[%clk 0:00:14]} 0-1


[Site "https://www.chess.com"]

[Event "Titled Tuesday Blitz May 23 Late 2023"]
[White "lluiss"]
[Black "Ottosen, David"]
[BlackFideId "2603080"]
[WhiteElo "2249"]
[BlackElo "2037"]
[Result "1-0"]
[Round "09"]
[TimeControl "180+2"]
[Date "2023.05.23"]
[WhiteClock "0:02:38"]
[BlackClock "0:02:56"]

1. Nf3 {[%clk 0:03:00]}  d5 {[%clk 0:03:00]} 2. d4 {[%clk 0:02:59]}  c6 {[%clk 0:03:00]} 3. c4 {[%clk 0:02:58]}  e6 {[%clk 0:03:00]} 4. cxd5 {[%clk 0:02:57]}  exd5 {[%clk 0:03:00]} 5. Nc3 {[%clk 0:02:57]}  Be7 {[%clk 0:03:01]} 6. Qc2 {[%clk 0:02:56]}  Nf6 {[%clk 0:03:01]} 7. Bg5 {[%clk 0:02:54]}  O-O {[%clk 0:03:00]} 8. e3 {[%clk 0:02:53]}  h6 {[%clk 0:03:01]} 9. Bh4 {[%clk 0:02:52]}  Nbd7 {[%clk 0:02:59]} 10. Bd3 {[%clk 0:02:52]}  Re8 {[%clk 0:02:59]} 11. O-O {[%clk 0:02:52]}  Nf8 {[%clk 0:02:59]} 12. h3 {[%clk 0:02:40]}  Nh5 {[%clk 0:02:57]} 13. Bxe7 {[%clk 0:02:40]}  Qd7 {[%clk 0:02:56]} 14. Bxf8 {[%clk 0:02:38]} 1-0


[Site "https://www.chess.com"]

[Event "Titled Tuesday Blitz May 23 Late 2023"]
[White "Quirke, Jeffrey"]
[Black "Lonoff, Marc"]
[WhiteFideId "2013029"]
[BlackFideId "2001349"]
[WhiteElo "2215"]
[BlackElo "2102"]
[Result "1-0"]
[Round "09"]
[TimeControl "180+2"]
[Date "2023.05.23"]
[WhiteClock "0:00:08"]
[BlackClock "0:00:00"]

1. e4 {[%clk 0:03:00]}  e6 {[%clk 0:02:59]} 2. d4 {[%clk 0:02:58]}  d5 {[%clk 0:02:59]} 3. e5 {[%clk 0:02:58]}  c5 {[%clk 0:02:58]} 4. c3 {[%clk 0:02:59]}  Nc6 {[%clk 0:02:58]} 5. Nf3 {[%clk 0:03:00]}  Bd7 {[%clk 0:02:58]} 6. Bd3 {[%clk 0:02:58]}  cxd4 {[%clk 0:02:58]} 7. cxd4 {[%clk 0:02:46]}  Qb6 {[%clk 0:02:57]} 8. Nc3 {[%clk 0:02:33]}  Nxd4 {[%clk 0:02:32]} 9. Nxd4 {[%clk 0:02:32]}  Qxd4 {[%clk 0:02:32]} 10. O-O {[%clk 0:02:33]}  a6 {[%clk 0:02:32]} 11. Re1 {[%clk 0:02:29]}  Ne7 {[%clk 0:02:24]} 12. Qe2 {[%clk 0:02:02]}  Nc6 {[%clk 0:02:23]} 13. Kh1 {[%clk 0:01:42]}  b5 {[%clk 0:01:51]} 14. f4 {[%clk 0:01:38]}  Qb6 {[%clk 0:01:47]} 15. f5 {[%clk 0:01:31]}  Be7 {[%clk 0:01:10]} 16. Qg4 {[%clk 0:00:37]}  g6 {[%clk 0:01:06]} 17. Bg5 {[%clk 0:00:22]}  gxf5 {[%clk 0:00:59]} 18. Qh4 {[%clk 0:00:22]}  Qd8 {[%clk 0:00:57]} 19. Bf6 {[%clk 0:00:21]}  Bxf6 {[%clk 0:00:56]} 20. exf6 {[%clk 0:00:21]}  Qc7 {[%clk 0:00:33]} 21. Nxd5 {[%clk 0:00:17]}  Qd6 {[%clk 0:00:33]} 22. Nb6 {[%clk 0:00:15]}  Rb8 {[%clk 0:00:33]} 23. Nxd7 {[%clk 0:00:14]}  Qxd7 {[%clk 0:00:32]} 24. Bxf5 {[%clk 0:00:12]}  h5 {[%clk 0:00:28]} 25. Bh3 {[%clk 0:00:11]}  Qd4 {[%clk 0:00:16]} 26. Qg3 {[%clk 0:00:10]}  Rd8 {[%clk 0:00:00]} 27. Bxe6 {[%clk 0:00:08]} 1-0


[Site "https://www.chess.com"]